Cogmind - Beta 10.2 @@@ ROGUE MODE // 2021.07.07 @ 23:19:55 // Winter2019/RPGLIKE Player: Kenzurith Result: Destroyed self with Latent Energy Streamer Performance ------------- Evolutions (1) 500 Regions Visited (5) 1000 Robots Destroyed (28) 140 Value Destroyed (511) 511 Prototype IDs (26) 520 Alien Tech Used (0) 0 Bonus (300) 300 TOTAL SCORE: 2971 Bonus ------- Aligned with FarCom 300 Cogmind --------- Core Integrity 0/800 Matter 280/300 Energy 300/460 System Corruption 2% Temperature Cool (9) Movement Walking (150) Ox1 Location -8/Mines Parts ------- > --- POWER (2) -------- Cooled Ion Engine Cooled Ion Engine > --- PROPULSION (3) --- Aluminum Leg Aluminum Leg Aluminum Leg > --- UTILITY (3) ------ Improved Heat Sink Improved Signal Interpreter Modified TNC > --- WEAPON (3) ------- Latent Energy Streamer Assault Rifle Assault Rifle > --- INVENTORY (2) ---- Light Assault Rifle Rocket Launcher Peak State ------------ > --- POWER ------------ Cooled Ion Engine Cooled Ion Engine > --- PROPULSION ------- Aluminum Leg Aluminum Leg Aluminum Leg > --- UTILITY ---------- Improved Heat Sink Improved Signal Interpreter Modified TNC > --- WEAPON ----------- Latent Energy Streamer Assault Rifle Assault Rifle > --- INVENTORY -------- Light Assault Rifle Rocket Launcher [Rating: 32] Favorites ----------- Power Cooled Ion Engine Engine Cooled Ion Engine Propulsion Aluminum Leg Leg Aluminum Leg Utility Improved Signal Interpreter Device Improved Heat Sink Storage Medium Matter Pod Processor Improved Signal Interpreter Weapon Assault Rifle Energy Gun Small Laser Energy Cannon Latent Energy Streamer Ballistic Gun Assault Rifle Build | -11 -10 -9 -9 -9 -8 ------- Run | Scr Mat Mat Min Exi Min Slots Evolved 7 | 2 . 3 2 . . Power 1 | . . 1 . . . Propulsion 2 | 1 . . 1 . . Utility 2 | . . 1 1 . . Weapon 2 | 1 . 1 . . . Parts Attached 12 | 3 1 4 2 1 1 Power 2 | . . 2 . . . Engine 2 | . . 2 . . . Core . | . . . . . . Reactor . | . . . . . . Propulsion 2 | 1 . . 1 . . Treads . | . . . . . . Leg 2 | 1 . . 1 . . Wheel . | . . . . . . Hover . | . . . . . . Flight . | . . . . . . Utility 4 | . 1 1 1 1 . Device 1 | . . . 1 . . Storage 1 | . 1 . . . . Processor 2 | . . 1 . 1 . Hackware . | . . . . . . Protection . | . . . . . . Artifact . | . . . . . . Weapon 4 | 2 . 1 . . 1 Energy Gun . | . . . . . . Energy Cannon 1 | . . . . . 1 Ballistic Gun 3 | 2 . 1 . . . Ballistic Cannon . | . . . . . . Launcher . | . . . . . . Special Weapon . | . . . . . . Impact Weapon . | . . . . . . Slashing Weapon . | . . . . . . Piercing Weapon . | . . . . . . Special Melee Weapon . | . . . . . . Unidentified Prototypes 1 | . . 1 . . . Parts Lost . | . . . . . . Power . | . . . . . . Propulsion . | . . . . . . Utility . | . . . . . . Weapon . | . . . . . . Highest Loss Streak . | . . . . . . Average Slot Usage (%) 97 | . 89 94 99 99 100 Engine 17 | . 16 12 20 18 18 Leg 26 | . 33 25 24 27 27 Device 3 | . . . 1 9 9 Storage 8 | . 5 12 10 6 . Processor 9 | . . 11 10 11 18 Ballistic Gun 30 | . 33 31 31 27 18 Naked Turns . | . . . . . . Heaviest Build 24 | 7 9 23 24 24 . Greatest Support 30 | 20 20 20 30 30 . Greatest Overweight (x) 1 | . . 1 1 . . Average Overweight (x) . | . . . . . . Largest Inventory Capacity 2 | . 1 1 1 2 2 Average Capacity 1 | . . 1 1 1 2 Most Carried 2 | . 1 1 1 2 2 Average Carried . | . . 1 1 1 2 Final Capacity 2 | . 1 1 1 2 2 Final Carried 2 | . 1 1 1 2 2 Class Distribution -------------------- 69% | Gunner 30% | Mutant Dominant Class ---------------- Mutant | -10/Materials Gunner | -9/Materials Gunner | -9/Mines Gunner | -9/Exiles Gunner | -8/Mines Resources | -11 -10 -9 -9 -9 -8 ----------- Run | Scr Mat Mat Min Exi Min Matter Collected 788 | 230 222 183 153 . . Remotely . | . . . . . . Salvage Created 759 | . 108 276 300 . 75 Parts 60 | . 15 31 11 . 3 Haulers Intercepted 1 | . . 1 . . . Recyclers Shooed . | . . . . . . Parts Field Recycled . | . . . . . . Retrieved Matter . | . . . . . . Parts Self-Destructed . | . . . . . . Prevented . | . . . . . . Kills | -11 -10 -9 -9 -9 -8 ------- Run | Scr Mat Mat Min Exi Min Combat Hostiles Destroyed 25 | . 6 12 6 . 1 Guns 24 | . 6 12 6 . . AOE 1 | . . . . . 1 Classes Destroyed 7 | . 3 2 2 . . Worker 1 | . 1 . . . . Hauler 1 | . . 1 . . . Watcher 2 | . 1 1 . . . Swarmer 17 | . 6 11 . . . Grunt 6 | . . 1 4 . 1 Demolisher 1 | . . . 1 . . Assembled 1 | . . . 1 . . Best Kill Streak 7 | . 5 7 2 . 1 Combat Bots Only 7 | . 5 7 2 . 1 Max Kills in Single Turn 3 | . 1 3 1 . 1 Gunslinging 2 | . . 2 . . . Exploded 1 | . . . . . 1 Melee . | . . . . . . Uniques/NPCs Destroyed . | . . . . . . Combat | -11 -10 -9 -9 -9 -8 -------- Run | Scr Mat Mat Min Exi Min Damage Taken 1245 | . 159 650 360 . 76 Core 1000 | . 135 520 285 . 60 Absorbed by Shields . | . . . . . . Redirected to Core 800 | . 69 416 255 . 60 Core Remaining (%) 92 | 100 84 . . . . Volleys Fired 61 | . 20 27 13 . 1 Largest 3 | . 2 3 3 . 1 Hottest 60 | . 40 60 60 . 60 Shots Fired 149 | . 40 69 39 . 1 Gun 148 | . 40 69 39 . . Cannon 1 | . . . . . 1 Launcher . | . . . . . . Special . | . . . . . . Kinetic 148 | . 40 69 39 . . Thermal . | . . . . . . Explosive . | . . . . . . Electromagnetic 1 | . . . . . 1 Robot Hit Streak 10 | . 7 9 10 . 1 Robot Miss Streak 5 | . 5 3 4 . . Penetration Max . | . . . . . . Secondary Targets 8 | . . 7 1 . . Max Gunslinging Chain 2 | . . 2 1 . . Shots Hit Robots 86 | . 20 45 20 . 1 Core Hits 40 | . 8 16 14 . 2 Critical Hits . | . . . . . . Critical Kills . | . . . . . . Critical Parts Destroyed . | . . . . . . Melee Attacks . | . . . . . . Impact . | . . . . . . Slashing . | . . . . . . Piercing . | . . . . . . Sneak Attacks . | . . . . . . Combat Hostiles . | . . . . . . Follow-up Attacks . | . . . . . . Damage Inflicted 1252 | . 225 495 293 . 239 Guns 1013 | . 225 495 293 . . Cannons 7 | . . . . . 7 Explosions 232 | . . . . . 232 Melee . | . . . . . . Ramming . | . . . . . . Kinetic 1013 | . 225 495 293 . . Thermal . | . . . . . . Explosive . | . . . . . . Electromagnetic 239 | . . . . . 239 Impact . | . . . . . . Slashing . | . . . . . . Piercing . | . . . . . . Highest Corruption . | . . . . . . Average Corruption . | . . . . . . Corruption Purged . | . . . . . . Overload Shots . | . . . . . . Overflow Damage . | . . . . . . Projectiles . | . . . . . . Explosions . | . . . . . . Melee . | . . . . . . Knockbacks . | . . . . . . Impact . | . . . . . . Kinetic . | . . . . . . Secondary . | . . . . . . Self-Inflicted Damage 62 | . . . . . 62 Shots 1 | . . . . . 1 Rammed . | . . . . . . Targets Rammed . | . . . . . . Kicked . | . . . . . . Crushed . | . . . . . . Highest Temperature 39 | . . 30 39 . . Average Temperature 14 | . . 14 13 . . Received Heat Transfer 186 | . . 78 90 . 18 Siege Activations . | . . . . . . Robots Corrupted . | . . . . . . Combat Hostiles . | . . . . . . Parts Fried . | . . . . . . Impact Corruptions . | . . . . . . Robots Melted . | . . . . . . Combat Hostiles . | . . . . . . Parts Melted . | . . . . . . Heat Transferred . | . . . . . . Parts Sabotaged . | . . . . . . Parts Stolen . | . . . . . . Parts Stripped . | . . . . . . Power Chain Reactions . | . . . . . . Missiles Intercepted . | . . . . . . Latent Energy Used 124 | . . . . . 124 LE Corruption 2 | . . . . . 2 Alert | -11 -10 -9 -9 -9 -8 ------- Run | Scr Mat Mat Min Exi Min Peak Influence 407 | . 167 407 228 . . Initial 158 | . . 70 158 . . Average 160 | . 116 213 151 . . Maximum Alert Level 2 | . . 2 1 . . Low Security (%) 71 | 100 100 39 79 . 100 Level 1 26 | . . 55 20 . . Level 2 1 | . . 4 . . . Level 3 . | . . . . . . Level 4 . | . . . . . . Level 5 . | . . . . . . High Security . | . . . . . . Max Security . | . . . . . . Squads Dispatched . | . . . . . . Investigation . | . . . . . . Extermination . | . . . . . . Reinforcement . | . . . . . . Assault . | . . . . . . Garrison . | . . . . . . Intercept . | . . . . . . Construction Impeded . | . . . . . . Haulers Reinforced . | . . . . . . Stealth | -11 -10 -9 -9 -9 -8 --------- Run | Scr Mat Mat Min Exi Min Distress Signals 3 | . 2 1 . . . Communications Jammed . | . . . . . . Distress Signals . | . . . . . . Times Spotted 41 | . 10 16 12 . 3 Peak Tracking Total 7 | . 7 6 6 . 3 Tactical Retreats 1 | . . 1 . . . Traps | -11 -10 -9 -9 -9 -8 ------- Run | Scr Mat Mat Min Exi Min Traps Triggered . | . . . . . . Indirectly . | . . . . . . Trap Hack Attempts . | . . . . . . Triggered . | . . . . . . Disarmed . | . . . . . . Reprogrammed . | . . . . . . Reused . | . . . . . . Traps Extracted . | . . . . . . Installed . | . . . . . . Triggered . | . . . . . . Machines | -11 -10 -9 -9 -9 -8 ---------- Run | Scr Mat Mat Min Exi Min Machines Disabled 1 | . . . . . 1 Max in Single Turn 1 | . . . . . 1 Machines Sabotaged . | . . . . . . Garrisons Compromised . | . . . . . . Overloaded Fab Kills . | . . . . . . Fab Network Shutdowns . | . . . . . . Hacking | -11 -10 -9 -9 -9 -8 --------- Run | Scr Mat Mat Min Exi Min Machines Accessed 3 | . . 2 . 1 . Terminals 2 | . . 2 . . . Fabricators . | . . . . . . Repair Stations . | . . . . . . Recycling Units . | . . . . . . Scanalyzers . | . . . . . . Garrison Access . | . . . . . . Total Hacks 7 | . . 6 . 1 . Successful 4 | . . 3 . 1 . Failed 3 | . . 3 . . . Catastrophic 1 | . . 1 . . . Database Lockouts . | . . . . . . Manual 5 | . . 3 . 2 . Terminals 6 | . . 6 . . . Fabricators . | . . . . . . Repair Stations . | . . . . . . Recycling Units . | . . . . . . Scanalyzers . | . . . . . . Garrison Access . | . . . . . . Terminal Hacks 4 | . . 3 . 1 . Prototype ID Bank 1 | . . 1 . . . Branch Access Points 1 | . . 1 . . . Alert Level 1 | . . 1 . . . EX-Prototype ID Bank 1 | . . . . 1 . Fabricator Hacks . | . . . . . . Repair Station Hacks . | . . . . . . Recycling Unit Hacks . | . . . . . . Scanalyzer . | . . . . . . Garrison Access Hacks . | . . . . . . Unauthorized Hacks . | . . . . . . Terminals . | . . . . . . Fabricators . | . . . . . . Repair Stations . | . . . . . . Recycling Units . | . . . . . . Scanalyzers . | . . . . . . Garrison Access . | . . . . . . Data Cores Recovered . | . . . . . . Used . | . . . . . . Hacking Detections 2 | . . 2 . . . Full Trace Events 1 | . . 1 . . . Feedback Events . | . . . . . . Feedback Blocked . | . . . . . . Robot Schematics Acquired . | . . . . . . Robots Built . | . . . . . . Matter . | . . . . . . Time . | . . . . . . Total Robot Build Rating . | . . . . . . Part Schematics Acquired . | . . . . . . Parts Built . | . . . . . . Matter . | . . . . . . Time . | . . . . . . Total Part Build Rating . | . . . . . . Parts Repaired . | . . . . . . Time . | . . . . . . Parts Recycled . | . . . . . . Recycled Matter . | . . . . . . Retrieved Matter . | . . . . . . Retrieved Components . | . . . . . . Parts Scanalyzed . | . . . . . . Part Schematics Acquired . | . . . . . . Parts Damaged . | . . . . . . Bothacking | -11 -10 -9 -9 -9 -8 ------------ Run | Scr Mat Mat Min Exi Min Used RIF Installer . | . . . . . . Robots Hacked . | . . . . . . Non-combat . | . . . . . . Combat . | . . . . . . Robot Hacks Applied . | . . . . . . Relay Couplers Released . | . . . . . . Robots Rewired . | . . . . . . Allies Hacked . | . . . . . . Hacks Repelled . | . . . . . . Allies | -11 -10 -9 -9 -9 -8 -------- Run | Scr Mat Mat Min Exi Min Total Allies . | . . . . . . Largest Group . | . . . . . . Highest-Rated Group . | . . . . . . Highest-Rated Ally . | . . . . . . Total Orders . | . . . . . . Ally Attacks . | . . . . . . Total Damage . | . . . . . . Kills . | . . . . . . Allies Corrupted . | . . . . . . Allies Melted . | . . . . . . Intel | -11 -10 -9 -9 -9 -8 ------- Run | Scr Mat Mat Min Exi Min Robot Analysis Total . | . . . . . . Derelict Logs Recovered . | . . . . . . Drone Launches . | . . . . . . Drone Recoveries . | . . . . . . Exploration | -11 -10 -9 -9 -9 -8 ------------- Run | Scr Mat Mat Min Exi Min Turns Passed 1440 | 19 174 299 518 428 2 Spaces Moved 942 | 12 88 166 321 355 . Core . | . . . . . . Treads . | . . . . . . Legs 942 | 12 88 166 321 355 . Wheels . | . . . . . . Hover . | . . . . . . Flight . | . . . . . . Fastest Speed 120 | 120 120 120 120 120 . Average Speed 125 | 120 120 120 135 120 . Slowest Speed 150 | 120 120 150 150 120 . Overloaded Moves . | . . . . . . Propulsion Burnouts . | . . . . . . Robots Hopped . | . . . . . . Cave-ins Triggered . | . . . . . . Exploration Rate (%) 27 | 2 14 20 62 61 5 Regions Visited 5 Branch Regions 3 Pre-discovered Areas . | . . . . . . Known Exits Taken 3 | . . 1 1 1 . Unknown Exits Taken 2 | 1 1 . . . . Scrap Searched 1 | . . . 1 . . Spaces Dug . | . . . . . . Terrain Destroyed 5 | . . . . . 5 Melee . | . . . . . . Projectile . | . . . . . . AOE 5 | . . . . . 5 Terrain Rammed . | . . . . . . Walls Destroyed . | . . . . . . Machines Disabled . | . . . . . . Actions | -11 -10 -9 -9 -9 -8 --------- Run | Scr Mat Mat Min Exi Min Total 1076 | 15 116 209 377 357 2 Wait 49 | . 5 4 40 . . Move 937 | 11 87 165 320 354 . Hop . | . . . . . . Pick Up 3 | . 1 . 1 1 . Fast Attach 11 | 3 1 4 2 1 . Attach . | . . . . . . Detach . | . . . . . . Swap 1 | . . . . . 1 Drop 4 | 1 . 1 1 1 . Fire 61 | . 20 27 13 . 1 Melee . | . . . . . . Ram . | . . . . . . Kick . | . . . . . . Crush . | . . . . . . Escape Stasis . | . . . . . . Rewire . | . . . . . . Trap . | . . . . . . Miscellaneous 10 | . 2 8 . . . Route ------- -11/Scrapyard -10/Materials -9/Materials (discovered 2 exits: *Min x2) -9/Mines (discovered 3 exits: [*Mat x2] / *Exi) -9/Exiles -8/Mines History --------- Turn | Location | Event 1 | -11/Scrapyard | Discovered new exit (range 1) 3 | -11/Scrapyard | Upgraded with Propulsion slot (x1) 3 | -11/Scrapyard | Upgraded with Weapon slot (x1) 20 | -11/Scrapyard | Entered Materials 182 | -10/Materials | Discovered new exit (range 10) 194 | -10/Materials | Entered another Materials area 196 | -9/Materials | Reached level 2 204 | -9/Materials | Upgraded with Weapon slot (x1) 204 | -9/Materials | Upgraded with Utility slot (x1) 306 | -9/Materials | Build established: Mutant 312 | -9/Materials | Reached level 3 336 | -9/Materials | Destroyed 7 combat bots 345 | -9/Materials | Identified exit to Mines 424 | -9/Materials | Core integrity fell below 50% 490 | -9/Materials | Upgraded with Power slot (x1) 493 | -9/Materials | Entered Mines 494 | -9/Mines | Assembled infested the area 499 | -9/Mines | Assisted by a Guerilla fighting off Assembled 500 | -9/Mines | Received a Rocket Launcher from a helpful Derelict 627 | -9/Mines | Build established: Gunner 786 | -9/Mines | Core integrity fell below 20% 788 | -9/Mines | Reached level 4 792 | -9/Mines | Upgraded with Propulsion slot (x1) 914 | -9/Mines | Upgraded with Utility slot (x1) 915 | -9/Mines | Discovered new exit (range 5) 977 | -9/Mines | Discovered new exit (range 10) 1006 | -9/Mines | Deemed a non-threat by the Exiles lab entrance 1006 | -9/Mines | Discovered new exit (range 5) 1010 | -9/Mines | Identified exit to Exiles 1011 | -9/Mines | Entered Exiles 1041 | -9/Exiles | Met 8R-AWN 1061 | -9/Exiles | Met EX-HEX 1105 | -9/Exiles | Met EX-BIN 1278 | -9/Exiles | Aligned with FarCom system 1279 | -9/Exiles | Given EX-Vault access code 1307 | -9/Exiles | Opened EX-Vault 1317 | -9/Exiles | Found Latent Energy Streamer 1323 | -9/Exiles | Found Modified TNC 1347 | -9/Exiles | Warned to stay clear of 0b10 Research branches 1382 | -9/Exiles | Met EX-DEC 1427 | -9/Exiles | Discovered new exit (range 12) 1438 | -9/Exiles | Identified exit to Mines 1439 | -9/Exiles | Stole two prototypes: Modified TNC, Latent Energy Streamer 1439 | -9/Exiles | Entered Mines 1441 | -8/Mines | Destroyed self with Latent Energy Streamer Last Messages --------------- EX-BIN: Oh yeah, I'd suggest you stay away from the 0b10 Research branches, since the FarCom signals could be picked up there, but you're welcome to try if you really want to. And if we have to leave here due to unforeseen circumstances, don't worry the FarCom system will continue to maintain contact via our distributed network. EX-BIN: And don't even think about spreading that code around. We're gonna change it right after you leave. Most certainly not to something like 1234 which I did last time as a little joke and some thief managed to sneak in here and steal a few of HEX's prototypes. EX-DEC: Ah I see we have a visitor. One wrong move in here and I'll invert your atomic chain! 01384_ EX-DEC: "Oops, I hope HEX didn't hear that..." 01427_ EXIT=FOUND 01438_ EXIT=IDENTIFIED: MINES LOCATION=MINES GOAL=ESCAPE 01439_ Receiving FarCom transmissions... 01441_ G-47 Trooper destroyed. 01441_ Core Extractor disabled. Map ----- +----------------------------------------------------+ | ?????????????????????????????????????????????????? | | ?????????????????????????????????????????????????? | | ?????????????????????????????????????????????????? | | ?????????????????????????????????????????????????? | | ?????????????????????????????????????????????????? | | ?????????????????????????????????????????????????? | | ?????????????????????????????????????????????????? | | ?????????????????????????????????????????????????? | | ?????????????????????????????????????????????????? | | ?????????????????????????????????????????????????? | | ?????????????????????????????????????????????????? | | ?????????????????????????????????????????????????? | | ?????????????????????????????????????????????????? | | ?????????????????????????????????????????????????? | | ?????????????????????????????????????????????????? | | ?????????????????????????????????????????????????? | | ????????????????????????####?????????????????????? | | ???????????????????????? ?????????????????????? | | ???????????????????????? ?????????????????????? | | ????????????????????????# ??????????????????????? | | ?????????????????????#### ??????????????????????? | | ?????????????????????# $ ??????????????????????? | | ?????????????????????# ??????????????????????? | | ???????????????????### ;;;####???????????????????? | | ???????????????????#; g #???????????????????? | | ????????????????????# %=@ #???????????????????? | | ?????????????? g #???????????????????? | | ?????????????#######; #???????????????????? | | ???????????????????## "" #???????????????????? | | ????????????????????# """ ??????????????????? | | ????????????????????# """ ?????????????????? | | ????????????????????# ####????????????????? | | ????????????????????##########???????????????????? | | ?????????????????????????????????????????????????? | | ?????????????????????????????????????????????????? | | | | | | | | | | | | | | | | | | | | | | | | | | | | | | | +----------------------------------------------------+ Best States ------------- Heat Dissipation 39 Energy Generation 23 Energy Capacity 460 Matter Stores 400 Matter Capacity 400 Sight Range 16 Terrain Scan Density 10 Evasion (%) 40 Item Schematics ----------------- None Robot Schematics ------------------ None Fabricated ------------ Nothing Alien Tech Used ----------------- None Achievements -------------- None Challenges ------------ None RPGLIKE | -11 -10 -9 -9 -9 -8 --------- Run | Scr Mat Mat Min Exi Min Levels Raised 3 | . . 2 1 . . XP Earned 8895 | 3000 735 3035 1100 350 675 XP Spent 5310 | 1000 250 1800 1705 555 . Upgrades 13 | 2 1 3 5 2 . Power Slot 1 | . . 1 . . . Propulsion Slot 2 | 1 . . 1 . . Utility Slot 2 | . . 1 1 . . Weapon Slot 2 | 1 . 1 . . . Core Integrity 4 | . . . 3 1 . Inventory Capacity 2 | . 1 . . 1 . Protomatter Created 79 | . 28 51 . . . Integrity Restored 192 | . 39 153 . . . Core 192 | . 39 153 . . . Protomatter Decayed 15 | . 15 . . . . Game ------ Seed AssaultResetClaws Manual? 0 Play Time 00:10:26 Cumulative 282.7 hours Start 2021.07.07 @ 23:07:56 End 2021.07.07 @ 23:19:55 Sessions 1 Manual Loads 0 Difficulty Rogue Special Mode Winter2019/RPGLIKE Game No. 154 Rogue 151 Adventurer 1 Explorer 2 Win Type - Total 5 Types 3/1/1/0/0/0/0/0/0 Lore% 75 Gallery% 85 Achievement% 64 Wizard Run 0 Options --------- ASCII 0 Keyboard 1 Movement Numpad Keybinds 1 Fullscreen 1 Font 24/Terminus Map View 76x50 Tactical HUD 1 Map Filters NONE Filters LOW_CONTRAST(0,0,0) Steam 1 RUN: d1834e29-fef7-4826-a895-4fa2122a255c